[Event "Early-Titled-Tuesday-Blitz-October-24-2023"]
[Site "Chess.com"]
[Date "2023.10.24"]
[Round "1"]
[White "jup1978"]
[Black "Blitzstream"]
[Result "0-1"]
[WhiteElo "2467"]
[BlackElo "2849"]
[TimeControl "180+1"]
[EndTime "8:07:29 PDT"]
[Termination "Blitzstream won by resignation"]

1. d4 {[%clk 0:03:00.9]} 1... d5 {[%clk 0:02:59.9]} 2. c4 {[%clk 0:03:00.6]}
2... c6 {[%clk 0:03:00.2]} 3. Nf3 {[%clk 0:02:58.6]} 3... Nf6 {[%clk 0:03:00.5]}
4. cxd5 {[%clk 0:02:56.4]} 4... cxd5 {[%clk 0:03:00.4]} 5. Nc3 {[%clk
0:02:56.5]} 5... Nc6 {[%clk 0:03:00.1]} 6. Bf4 {[%clk 0:02:56.6]} 6... Ne4
{[%clk 0:02:58.2]} 7. e3 {[%clk 0:02:54]} 7... Nxc3 {[%clk 0:02:58.3]} 8. bxc3
{[%clk 0:02:53.7]} 8... g6 {[%clk 0:02:59]} 9. c4 {[%clk 0:02:50.7]} 9... Bg7
{[%clk 0:02:59.2]} 10. Be2 {[%clk 0:02:48.2]} 10... dxc4 {[%clk 0:02:58.5]} 11.
Bxc4 {[%clk 0:02:49.1]} 11... Qa5+ {[%clk 0:02:58.5]} 12. Qd2 {[%clk 0:02:48.6]}
12... Qxd2+ {[%clk 0:02:57.9]} 13. Nxd2 {[%clk 0:02:49.5]} 13... Bf5 {[%clk
0:02:57.4]} 14. O-O {[%clk 0:02:48.1]} 14... O-O {[%clk 0:02:55.4]} 15. Nf3
{[%clk 0:02:47.8]} 15... Rac8 {[%clk 0:02:52.7]} 16. Rfc1 {[%clk 0:02:22.9]}
16... Nb4 {[%clk 0:02:43.6]} 17. Ne1 {[%clk 0:02:15]} 17... Nc2 {[%clk
0:02:25.2]} 18. Nxc2 {[%clk 0:02:05]} 18... Rxc4 {[%clk 0:02:24.1]} 19. Na3
{[%clk 0:02:04.6]} 19... Rxc1+ {[%clk 0:01:52]} 20. Rxc1 {[%clk 0:02:05.5]}
20... Rc8 {[%clk 0:01:52.2]} 21. Rxc8+ {[%clk 0:01:58.7]} 21... Bxc8 {[%clk
0:01:53.1]} 22. Kf1 {[%clk 0:01:57.8]} 22... Kf8 {[%clk 0:01:45.4]} 23. Nb5
{[%clk 0:01:50.5]} 23... a6 {[%clk 0:01:38.6]} 24. Nc3 {[%clk 0:01:49.8]} 24...
b5 {[%clk 0:01:36.5]} 25. Ke2 {[%clk 0:01:44.9]} 25... Be6 {[%clk 0:01:35.1]}
26. a3 {[%clk 0:01:44]} 26... Bc4+ {[%clk 0:01:30.6]} 27. Kd2 {[%clk 0:01:44.1]}
27... Ke8 {[%clk 0:01:29.3]} 28. f3 {[%clk 0:01:39]} 28... Kd7 {[%clk
0:01:26.5]} 29. Ne4 {[%clk 0:01:39.6]} 29... Kc6 {[%clk 0:01:22.7]} 30. Nc5
{[%clk 0:01:39.4]} 30... a5 {[%clk 0:01:19.1]} 31. Ne4 {[%clk 0:01:34.7]} 31...
Bf8 {[%clk 0:01:01.6]} 32. Kc2 {[%clk 0:01:32]} 32... e6 {[%clk 0:00:40.9]} 33.
Kb2 {[%clk 0:01:29.4]} 33... b4 {[%clk 0:00:40.2]} 34. axb4 {[%clk 0:01:27.4]}
34... Bxb4 {[%clk 0:00:41.1]} 35. Nc3 {[%clk 0:01:20.7]} 35... Bf1 {[%clk
0:00:36.4]} 36. g3 {[%clk 0:01:10.1]} 36... Bg2 {[%clk 0:00:35.9]} 37. e4 {[%clk
0:01:06.2]} 37... Bxf3 {[%clk 0:00:34.3]} 38. d5+ {[%clk 0:01:06.4]} 38... exd5
{[%clk 0:00:32.5]} 39. Nxd5 {[%clk 0:01:06.6]} 39... Bxe4 {[%clk 0:00:25.2]} 40.
Nxb4+ {[%clk 0:01:06.1]} 40... axb4 {[%clk 0:00:26.1]} 41. Bd2 {[%clk
0:01:00.1]} 41... Kb5 {[%clk 0:00:25.8]} 42. g4 {[%clk 0:00:58.4]} 42... Kc4
{[%clk 0:00:21.9]} 43. g5 {[%clk 0:00:57.8]} 43... Bd5 {[%clk 0:00:19.8]} 44. h4
{[%clk 0:00:56.2]} 44... b3 {[%clk 0:00:19.8]} 45. Be1 {[%clk 0:00:53.4]} 45...
Kd3 {[%clk 0:00:19.7]} 46. Bb4 {[%clk 0:00:52.8]} 46... Ke4 {[%clk 0:00:19.7]}
47. Bd2 {[%clk 0:00:51.3]} 47... Kf5 {[%clk 0:00:19.9]} 48. Bc3 {[%clk
0:00:50.5]} 48... Kg4 {[%clk 0:00:20.1]} 49. Be1 {[%clk 0:00:50.5]} 49... Kh5
{[%clk 0:00:20.5]} 50. Kc3 {[%clk 0:00:50.8]} 50... h6 {[%clk 0:00:20.7]} 51.
gxh6 {[%clk 0:00:45.2]} 51... Kxh6 {[%clk 0:00:21.6]} 52. Bd2+ {[%clk
0:00:39.6]} 52... Kh5 {[%clk 0:00:21.6]} 53. Be1 {[%clk 0:00:39.9]} 53... Kg4
{[%clk 0:00:21.9]} 54. Kb2 {[%clk 0:00:39]} 54... f5 {[%clk 0:00:22.2]} 55. Kc3
{[%clk 0:00:39.1]} 55... Kf3 {[%clk 0:00:22.5]} 56. Bd2 {[%clk 0:00:39]} 56...
f4 {[%clk 0:00:20.5]} 57. Bc1 {[%clk 0:00:38]} 57... Kg4 {[%clk 0:00:18.3]} 58.
Kd4 {[%clk 0:00:38.3]} 58... f3 {[%clk 0:00:18.1]} 59. Ke3 {[%clk 0:00:35.8]}
59... Kg3 {[%clk 0:00:18.2]} 0-1

[Event "Early-Titled-Tuesday-Blitz-October-24-2023"]
[Site "Chess.com"]
[Date "2023.10.24"]
[Round "1"]
[White "Fuzesabonyilaci"]
[Black "adapodadei"]
[Result "0-1"]
[WhiteElo "2396"]
[BlackElo "2722"]
[TimeControl "180+1"]
[EndTime "8:07:29 PDT"]
[Termination "adapodadei won on time"]

1. d4 {[%clk 0:03:00.9]} 1... Nf6 {[%clk 0:02:59.6]} 2. Nc3 {[%clk 0:02:59]}
2... d5 {[%clk 0:02:59.6]} 3. Bf4 {[%clk 0:02:59.3]} 3... e6 {[%clk 0:03:00.1]}
4. Nf3 {[%clk 0:02:55.9]} 4... Bb4 {[%clk 0:03:00.1]} 5. Qd3 {[%clk 0:02:48.3]}
5... c5 {[%clk 0:02:58]} 6. dxc5 {[%clk 0:02:45.9]} 6... Nbd7 {[%clk 0:02:57.3]}
7. a3 {[%clk 0:02:42.7]} 7... Qa5 {[%clk 0:02:56.4]} 8. Ne5 {[%clk 0:02:34.3]}
8... Nxc5 {[%clk 0:02:52.1]} 9. Qd4 {[%clk 0:02:29.6]} 9... Bxc3+ {[%clk
0:02:49.3]} 10. Qxc3 {[%clk 0:02:24.3]} 10... Qxc3+ {[%clk 0:02:49.1]} 11. bxc3
{[%clk 0:02:25.2]} 11... Nfe4 {[%clk 0:02:49.7]} 12. Bd2 {[%clk 0:02:24.8]}
12... Nxd2 {[%clk 0:02:49.3]} 13. Kxd2 {[%clk 0:02:23.8]} 13... Ne4+ {[%clk
0:02:50]} 14. Ke1 {[%clk 0:02:14.8]} 14... f6 {[%clk 0:02:50.1]} 15. Nd3 {[%clk
0:02:11.5]} 15... Nxc3 {[%clk 0:02:49.9]} 16. f3 {[%clk 0:02:12.2]} 16... Bd7
{[%clk 0:02:49.3]} 17. Kd2 {[%clk 0:02:11.2]} 17... Rc8 {[%clk 0:02:49.4]} 18.
e3 {[%clk 0:02:05.4]} 18... e5 {[%clk 0:02:45.2]} 19. Nb4 {[%clk 0:02:03.4]}
19... Be6 {[%clk 0:02:41.6]} 20. Na2 {[%clk 0:02:02.3]} 20... Nxa2 {[%clk
0:02:38.1]} 21. Rxa2 {[%clk 0:02:03.2]} 21... Ke7 {[%clk 0:02:36.3]} 22. Rb2
{[%clk 0:02:02.9]} 22... Rc7 {[%clk 0:02:36.9]} 23. Bd3 {[%clk 0:01:59.7]} 23...
g6 {[%clk 0:02:37.4]} 24. Rhb1 {[%clk 0:01:59.5]} 24... b6 {[%clk 0:02:36.7]}
25. a4 {[%clk 0:01:59.3]} 25... f5 {[%clk 0:02:32]} 26. e4 {[%clk 0:01:54.3]}
26... dxe4 {[%clk 0:02:24.1]} 27. fxe4 {[%clk 0:01:55.2]} 27... Rd8 {[%clk
0:02:24.6]} 28. Ke3 {[%clk 0:01:51.8]} 28... Rc5 {[%clk 0:02:23.8]} 29. Rb5
{[%clk 0:01:49.7]} 29... Rxb5 {[%clk 0:02:22.4]} 30. axb5 {[%clk 0:01:48.8]}
30... f4+ {[%clk 0:02:22]} 31. Kf3 {[%clk 0:01:45.8]} 31... g5 {[%clk
0:02:22.4]} 32. h3 {[%clk 0:01:43.7]} 32... h5 {[%clk 0:02:22.3]} 33. Kf2 {[%clk
0:01:38.2]} 33... Rd7 {[%clk 0:02:21]} 34. Rh1 {[%clk 0:01:28.1]} 34... Rc7
{[%clk 0:02:20.6]} 35. Ra1 {[%clk 0:01:19.7]} 35... Kf6 {[%clk 0:02:20.1]} 36.
Ra3 {[%clk 0:01:13.9]} 36... g4 {[%clk 0:02:11.6]} 37. hxg4 {[%clk 0:01:14.8]}
37... hxg4 {[%clk 0:02:12.2]} 38. Ra1 {[%clk 0:01:14.9]} 38... g3+ {[%clk
0:02:11.8]} 39. Ke1 {[%clk 0:01:11.1]} 39... Rh7 {[%clk 0:02:11.3]} 40. Kd2
{[%clk 0:01:08.6]} 40... Rh2 {[%clk 0:02:09.6]} 41. Rg1 {[%clk 0:00:58.3]} 41...
f3 {[%clk 0:02:09.2]} 42. Ke3 {[%clk 0:00:57.9]} 42... f2 {[%clk 0:02:08.8]} 43.
Rf1 {[%clk 0:00:54.6]} 43... Rxg2 {[%clk 0:02:09.1]} 44. Kf3 {[%clk 0:00:52.6]}
44... Bh3 {[%clk 0:02:09.3]} 45. Rh1 {[%clk 0:00:41.1]} 45... Rh2 {[%clk
0:02:08.2]} 46. Ra1 {[%clk 0:00:40.5]} 46... f1=Q+ {[%clk 0:02:03.6]} 47. Bxf1
{[%clk 0:00:38.6]} 47... Rf2+ {[%clk 0:02:01.8]} 48. Kxg3 {[%clk 0:00:36.7]}
48... Rxf1 {[%clk 0:02:00.7]} 49. Rxa7 {[%clk 0:00:33.6]} 49... Be6 {[%clk
0:01:53.7]} 50. Rb7 {[%clk 0:00:28.1]} 50... Rc1 {[%clk 0:01:52.7]} 51. Rxb6
{[%clk 0:00:19.4]} 51... Rxc2 {[%clk 0:01:52.7]} 52. Kf3 {[%clk 0:00:18.8]}
52... Ke7 {[%clk 0:01:47.8]} 53. Rb7+ {[%clk 0:00:17.8]} 53... Bd7 {[%clk
0:01:46.6]} 54. Ke3 {[%clk 0:00:16.9]} 54... Rb2 {[%clk 0:01:46.1]} 55. b6
{[%clk 0:00:17.4]} 55... Kd6 {[%clk 0:01:46.6]} 56. Kd3 {[%clk 0:00:16.3]} 56...
Kc6 {[%clk 0:01:43.2]} 57. Rc7+ {[%clk 0:00:16.3]} 57... Kd6 {[%clk 0:01:42.6]}
58. Rb7 {[%clk 0:00:16.9]} 58... Bc6 {[%clk 0:01:42.6]} 59. Rb8 {[%clk
0:00:16.5]} 59... Kc5 {[%clk 0:01:43]} 60. Ke3 {[%clk 0:00:10.6]} 60... Rb3+
{[%clk 0:01:42.6]} 61. Kf2 {[%clk 0:00:10.1]} 61... Rxb6 {[%clk 0:01:43.1]} 62.
Rh8 {[%clk 0:00:09.3]} 62... Kd4 {[%clk 0:01:42.6]} 63. Kg3 {[%clk 0:00:08.1]}
63... Bxe4 {[%clk 0:01:41.5]} 64. Rd8+ {[%clk 0:00:07.7]} 64... Bd5 {[%clk
0:01:42.1]} 65. Kf2 {[%clk 0:00:07.6]} 65... Rf6+ {[%clk 0:01:42.5]} 66. Ke2
{[%clk 0:00:07.8]} 66... e4 {[%clk 0:01:42.8]} 67. Rb8 {[%clk 0:00:07.7]} 67...
Rh6 {[%clk 0:01:41.3]} 68. Ke1 {[%clk 0:00:07]} 68... Bc4 {[%clk 0:01:40.3]} 69.
Ra8 {[%clk 0:00:05.4]} 69... Ke3 {[%clk 0:01:39.6]} 70. Kd1 {[%clk 0:00:05]}
70... Bd3 {[%clk 0:01:39.1]} 71. Kc1 {[%clk 0:00:04.3]} 71... Rb6 {[%clk
0:01:39.9]} 72. Ra1 {[%clk 0:00:01.5]} 72... Rb5 {[%clk 0:01:33.4]} 0-1

[Event "Early-Titled-Tuesday-Blitz-October-24-2023"]
[Site "Chess.com"]
[Date "2023.10.24"]
[Round "1"]
[White "Payyappat"]
[Black "bardiya_Daneshvar"]
[Result "0-1"]
[WhiteElo "2507"]
[BlackElo "2974"]
[TimeControl "180+1"]
[EndTime "8:07:32 PDT"]
[Termination "bardiya_Daneshvar won by resignation"]

1. e4 {[%clk 0:03:00.9]} 1... e5 {[%clk 0:02:58.8]} 2. Nf3 {[%clk 0:03:01.1]}
2... Nc6 {[%clk 0:02:59.5]} 3. Bc4 {[%clk 0:03:01.7]} 3... Nf6 {[%clk
0:02:58.6]} 4. d4 {[%clk 0:03:02]} 4... exd4 {[%clk 0:02:57.6]} 5. e5 {[%clk
0:03:02.9]} 5... d5 {[%clk 0:02:57.4]} 6. Bb5 {[%clk 0:03:03.3]} 6... Ne4 {[%clk
0:02:56.9]} 7. Nxd4 {[%clk 0:03:03.8]} 7... Bd7 {[%clk 0:02:56.8]} 8. Bxc6
{[%clk 0:03:02.1]} 8... bxc6 {[%clk 0:02:57.7]} 9. O-O {[%clk 0:03:02.5]} 9...
Be7 {[%clk 0:02:58]} 10. f3 {[%clk 0:03:01.8]} 10... Nc5 {[%clk 0:02:58]} 11.
Be3 {[%clk 0:03:01.6]} 11... O-O {[%clk 0:02:57.4]} 12. f4 {[%clk 0:02:59.8]}
12... Ne4 {[%clk 0:02:52.7]} 13. Nd2 {[%clk 0:02:57.1]} 13... c5 {[%clk
0:02:51.3]} 14. N4b3 {[%clk 0:02:53.7]} 14... Nxd2 {[%clk 0:02:48.1]} 15. Qxd2
{[%clk 0:02:54.6]} 15... d4 {[%clk 0:02:48.3]} 16. Bf2 {[%clk 0:02:54.9]} 16...
Bb5 {[%clk 0:02:38.2]} 17. Rfd1 {[%clk 0:02:51.2]} 17... Qd5 {[%clk 0:02:37.3]}
18. Rac1 {[%clk 0:02:41.2]} 18... Bc6 {[%clk 0:02:28.3]} 19. Bg3 {[%clk
0:02:38.7]} 19... Rfd8 {[%clk 0:02:16]} 20. Qf2 {[%clk 0:02:34.5]} 20... a5
{[%clk 0:02:11.3]} 21. a3 {[%clk 0:02:24.7]} 21... a4 {[%clk 0:02:08.8]} 22. Nd2
{[%clk 0:02:23.1]} 22... c4 {[%clk 0:02:07.2]} 23. Nf3 {[%clk 0:02:21.4]} 23...
Bc5 {[%clk 0:02:06.5]} 24. Kh1 {[%clk 0:02:19.2]} 24... Bb6 {[%clk 0:02:01.2]}
25. Rd2 {[%clk 0:02:13.6]} 25... d3 {[%clk 0:01:54.8]} 26. Qe1 {[%clk
0:02:07.9]} 26... Ba5 {[%clk 0:01:51.2]} 27. c3 {[%clk 0:02:04.1]} 27... Bd7
{[%clk 0:01:49.1]} 28. Qf1 {[%clk 0:02:02.6]} 28... Bb6 {[%clk 0:01:47.9]} 29.
Rcd1 {[%clk 0:01:59.2]} 29... Be3 {[%clk 0:01:46.2]} 30. Nd4 {[%clk 0:01:51.8]}
30... Bxd2 {[%clk 0:01:45.2]} 31. Rxd2 {[%clk 0:01:51.5]} 31... c5 {[%clk
0:01:45.8]} 32. Nf3 {[%clk 0:01:49.9]} 32... Rab8 {[%clk 0:01:44.7]} 33. Qf2
{[%clk 0:01:48.1]} 33... Bg4 {[%clk 0:01:41.9]} 34. Ne1 {[%clk 0:01:45.9]} 34...
Qe4 {[%clk 0:01:41.3]} 35. Kg1 {[%clk 0:01:44.6]} 35... Rb5 {[%clk 0:01:40.8]}
36. h3 {[%clk 0:01:42.5]} 36... Be6 {[%clk 0:01:36.3]} 37. Bh2 {[%clk
0:01:41.8]} 37... Bd5 {[%clk 0:01:25.6]} 38. Nf3 {[%clk 0:01:38.1]} 38... h6
{[%clk 0:01:24.8]} 39. Kf1 {[%clk 0:01:28.1]} 39... Ba8 {[%clk 0:01:23.9]} 40.
Ng1 {[%clk 0:01:26.3]} 40... Re8 {[%clk 0:01:19.6]} 41. Rd1 {[%clk 0:01:21.2]}
41... Qb7 {[%clk 0:01:13.6]} 42. Rd2 {[%clk 0:01:19.8]} 42... Qe4 {[%clk
0:01:08.1]} 43. Rd1 {[%clk 0:01:18]} 43... Rb6 {[%clk 0:01:08]} 44. Nf3 {[%clk
0:01:13.7]} 44... Reb8 {[%clk 0:01:04.6]} 45. Rd2 {[%clk 0:01:13]} 45... Qb7
{[%clk 0:01:04.3]} 46. f5 {[%clk 0:01:07.7]} 46... Rxb2 {[%clk 0:01:04]} 47. e6
{[%clk 0:01:02.7]} 47... Rb1+ {[%clk 0:01:01.1]} 48. Ne1 {[%clk 0:01:02.3]}
48... Re8 {[%clk 0:01:01.5]} 49. Qxc5 {[%clk 0:00:54.1]} 49... Qe4 {[%clk
0:00:58.1]} 50. Qf2 {[%clk 0:00:44.2]} 50... fxe6 {[%clk 0:00:58]} 51. f6 {[%clk
0:00:42.4]} 51... Rf8 {[%clk 0:00:58.4]} 52. Bf4 {[%clk 0:00:31.7]} 52... Rxe1+
{[%clk 0:00:56]} 53. Qxe1 {[%clk 0:00:29.8]} 53... Qxf4+ {[%clk 0:00:52.7]} 54.
Rf2 {[%clk 0:00:29.5]} 54... Qd6 {[%clk 0:00:52.8]} 55. Qe3 {[%clk 0:00:21.1]}
55... d2 {[%clk 0:00:47]} 56. Rxd2 {[%clk 0:00:19.7]} 56... Rxf6+ {[%clk
0:00:47.2]} 57. Kg1 {[%clk 0:00:18.7]} 57... Bd5 {[%clk 0:00:46.6]} 58. Rb2
{[%clk 0:00:17.9]} 58... Qf4 {[%clk 0:00:46.3]} 59. Qxf4 {[%clk 0:00:16.5]}
59... Rxf4 {[%clk 0:00:47.2]} 60. Rb8+ {[%clk 0:00:17.3]} 60... Kh7 {[%clk
0:00:46.9]} 61. Rb3 {[%clk 0:00:17.4]} 61... cxb3 {[%clk 0:00:46.6]} 0-1

[Event "Early-Titled-Tuesday-Blitz-October-24-2023"]
[Site "Chess.com"]
[Date "2023.10.24"]
[Round "1"]
[White "chess123456s"]
[Black "Mariia89"]
[Result "1-0"]
[WhiteElo "2542"]
[BlackElo "2128"]
[TimeControl "180+1"]
[EndTime "8:07:32 PDT"]
[Termination "chess123456s won by resignation"]

1. d4 {[%clk 0:03:00.9]} 1... Nf6 {[%clk 0:02:58.3]} 2. Nc3 {[%clk 0:03:00.8]}
2... c5 {[%clk 0:02:58.4]} 3. d5 {[%clk 0:03:00.5]} 3... d6 {[%clk 0:02:58.7]}
4. e4 {[%clk 0:03:01]} 4... g6 {[%clk 0:02:58.4]} 5. Bb5+ {[%clk 0:03:00.9]}
5... Bd7 {[%clk 0:02:58.2]} 6. a4 {[%clk 0:03:01.4]} 6... Bg7 {[%clk 0:02:58.2]}
7. Nf3 {[%clk 0:03:01.7]} 7... O-O {[%clk 0:02:58.1]} 8. O-O {[%clk 0:03:02.4]}
8... a6 {[%clk 0:02:57.7]} 9. Be2 {[%clk 0:03:02.8]} 9... b6 {[%clk 0:02:54.9]}
10. Nd2 {[%clk 0:03:02.6]} 10... e5 {[%clk 0:02:49.3]} 11. Nc4 {[%clk
0:03:01.5]} 11... Ne8 {[%clk 0:02:44.6]} 12. f4 {[%clk 0:02:49.6]} 12... exf4
{[%clk 0:02:31.5]} 13. Bxf4 {[%clk 0:02:49]} 13... Qe7 {[%clk 0:02:32.2]} 14.
Nxb6 {[%clk 0:02:46.4]} 14... Bxc3 {[%clk 0:01:48]} 15. Nxa8 {[%clk 0:02:24.1]}
15... Bxb2 {[%clk 0:01:42.1]} 16. Rb1 {[%clk 0:02:22.7]} 16... Bd4+ {[%clk
0:01:42.4]} 17. Kh1 {[%clk 0:02:23.2]} 17... Qxe4 {[%clk 0:01:42.8]} 18. Nb6
{[%clk 0:02:20.1]} 18... Bh3 {[%clk 0:01:26]} 19. Bf3 {[%clk 0:02:07.7]} 19...
Qxf4 {[%clk 0:01:25.9]} 20. gxh3 {[%clk 0:02:07.9]} 20... Nf6 {[%clk 0:01:16.3]}
21. Bg2 {[%clk 0:02:04.9]} 21... Qe3 {[%clk 0:01:11.5]} 22. Rb3 {[%clk
0:02:00.2]} 22... Qh6 {[%clk 0:01:10.9]} 23. Nc4 {[%clk 0:01:51.5]} 23... Rd8
{[%clk 0:01:01.4]} 24. Nxd6 {[%clk 0:01:49.8]} 24... Nbd7 {[%clk 0:00:59.3]} 25.
Rbf3 {[%clk 0:01:46.6]} 25... Qg5 {[%clk 0:00:37.7]} 26. Qc1 {[%clk 0:01:30.5]}
26... Qe5 {[%clk 0:00:36.3]} 27. Nc4 {[%clk 0:01:27.3]} 27... Qxd5 {[%clk
0:00:36]} 28. Rxf6 {[%clk 0:01:23.8]} 28... Qxc4 {[%clk 0:00:36.3]} 29. Rxf7
{[%clk 0:01:20.8]} 29... Qxf7 {[%clk 0:00:35.2]} 30. Rxf7 {[%clk 0:01:20.2]}
30... Kxf7 {[%clk 0:00:35.8]} 31. Qf1+ {[%clk 0:01:19.8]} 31... Kg7 {[%clk
0:00:35.5]} 32. Qxa6 {[%clk 0:01:20.2]} 32... Ne5 {[%clk 0:00:32.4]} 33. Qb7+
{[%clk 0:01:20]} 33... Rd7 {[%clk 0:00:32.3]} 34. Qb8 {[%clk 0:01:16.3]} 34...
Re7 {[%clk 0:00:31.4]} 35. Bd5 {[%clk 0:01:04.5]} 35... Rd7 {[%clk 0:00:15.3]}
36. c4 {[%clk 0:01:01.7]} 36... Re7 {[%clk 0:00:14.8]} 37. Qd8 {[%clk
0:00:58.1]} 37... Ra7 {[%clk 0:00:12.1]} 38. a5 {[%clk 0:00:56.8]} 38... Rd7
{[%clk 0:00:11.8]} 39. Qg8+ {[%clk 0:00:54]} 39... Kh6 {[%clk 0:00:11.6]} 40. a6
{[%clk 0:00:53.7]} 40... Nd3 {[%clk 0:00:08.2]} 41. Qe8 {[%clk 0:00:48.2]} 41...
Ra7 {[%clk 0:00:07.3]} 42. Bb7 {[%clk 0:00:47.6]} 42... Nf2+ {[%clk 0:00:05.9]}
43. Kg2 {[%clk 0:00:47.9]} 43... Nd3 {[%clk 0:00:06.2]} 44. Qb8 {[%clk
0:00:47.6]} 44... Rxb7 {[%clk 0:00:05.3]} 45. axb7 {[%clk 0:00:47.1]} 45... Nb4
{[%clk 0:00:04.1]} 46. Qf8+ {[%clk 0:00:46.6]} 46... Bg7 {[%clk 0:00:03.8]} 47.
Qxg7+ {[%clk 0:00:46.7]} 47... Kxg7 {[%clk 0:00:03.9]} 48. b8=Q {[%clk
0:00:47.6]} 1-0

[Event "Early-Titled-Tuesday-Blitz-October-24-2023"]
[Site "Chess.com"]
[Date "2023.10.24"]
[Round "1"]
[White "Politov_Pavel"]
[Black "Semetey"]
[Result "0-1"]
[WhiteElo "2059"]
[BlackElo "2535"]
[TimeControl "180+1"]
[EndTime "8:07:32 PDT"]
[Termination "Semetey won on time"]

1. d4 {[%clk 0:03:00.1]} 1... a6 {[%clk 0:02:57.1]} 2. e4 {[%clk 0:02:58]} 2...
c6 {[%clk 0:02:57.2]} 3. Nf3 {[%clk 0:02:56]} 3... d5 {[%clk 0:02:57.5]} 4. exd5
{[%clk 0:02:55]} 4... cxd5 {[%clk 0:02:57.2]} 5. h3 {[%clk 0:02:55.2]} 5... Bf5
{[%clk 0:02:56.4]} 6. Bd3 {[%clk 0:02:54.7]} 6... Bxd3 {[%clk 0:02:55.6]} 7.
Qxd3 {[%clk 0:02:55.6]} 7... Nc6 {[%clk 0:02:55.5]} 8. c3 {[%clk 0:02:54.8]}
8... Nf6 {[%clk 0:02:55.6]} 9. Nbd2 {[%clk 0:02:52.6]} 9... e6 {[%clk
0:02:56.1]} 10. O-O {[%clk 0:02:52.4]} 10... Be7 {[%clk 0:02:55.9]} 11. Ne5
{[%clk 0:02:51.2]} 11... Nxe5 {[%clk 0:02:52.1]} 12. dxe5 {[%clk 0:02:50.9]}
12... Nd7 {[%clk 0:02:52.7]} 13. Re1 {[%clk 0:02:49.9]} 13... O-O {[%clk
0:02:52.7]} 14. Nf3 {[%clk 0:02:49.3]} 14... b5 {[%clk 0:02:50.9]} 15. a4 {[%clk
0:02:39.9]} 15... Qb6 {[%clk 0:02:48.4]} 16. Bg5 {[%clk 0:02:29]} 16... Bc5
{[%clk 0:02:37.8]} 17. Re2 {[%clk 0:02:13.3]} 17... h6 {[%clk 0:02:35.8]} 18.
Bf4 {[%clk 0:02:02.1]} 18... Rfc8 {[%clk 0:02:28.2]} 19. a5 {[%clk 0:02:00.2]}
19... Qb7 {[%clk 0:02:26.4]} 20. Nd4 {[%clk 0:01:57.4]} 20... b4 {[%clk
0:02:25.4]} 21. Qg3 {[%clk 0:01:52.6]} 21... Kh8 {[%clk 0:02:24]} 22. Qh4 {[%clk
0:01:49.6]} 22... Bf8 {[%clk 0:02:22.6]} 23. Re3 {[%clk 0:01:34]} 23... bxc3
{[%clk 0:02:19.9]} 24. bxc3 {[%clk 0:01:30.7]} 24... Nc5 {[%clk 0:02:19.1]} 25.
Rg3 {[%clk 0:01:29.5]} 25... Ne4 {[%clk 0:02:18.8]} 26. Rg4 {[%clk 0:00:54]}
26... Qe7 {[%clk 0:02:05.5]} 27. Qh5 {[%clk 0:00:42.8]} 27... g6 {[%clk
0:02:03.1]} 28. Rxg6 {[%clk 0:00:35.7]} 28... fxg6 {[%clk 0:02:03]} 29. Qxg6
{[%clk 0:00:36.6]} 29... Re8 {[%clk 0:01:42.9]} 30. Bxh6 {[%clk 0:00:32.9]}
30... Qh7 {[%clk 0:01:41.1]} 31. Qxh7+ {[%clk 0:00:25.5]} 31... Kxh7 {[%clk
0:01:42]} 32. Bxf8 {[%clk 0:00:25.7]} 32... Rxf8 {[%clk 0:01:42]} 33. Nxe6
{[%clk 0:00:25.7]} 33... Rfc8 {[%clk 0:01:21]} 34. Rd1 {[%clk 0:00:16]} 34...
Nxc3 {[%clk 0:01:20.8]} 35. Rd3 {[%clk 0:00:15.2]} 35... Ra7 {[%clk 0:01:16.3]}
36. Nf4 {[%clk 0:00:14.3]} 36... Rc5 {[%clk 0:01:06.1]} 37. Ne6 {[%clk
0:00:12.7]} 37... Rc4 {[%clk 0:01:02.9]} 38. Ng5+ {[%clk 0:00:09.3]} 38... Kg6
{[%clk 0:01:02.7]} 39. Nf3 {[%clk 0:00:09.5]} 39... Re7 {[%clk 0:00:59.7]} 40.
Nd2 {[%clk 0:00:07.6]} 40... Rc6 {[%clk 0:00:55]} 41. Nf3 {[%clk 0:00:03.2]}
41... Rc5 {[%clk 0:00:48]} 42. Nd4 {[%clk 0:00:02.2]} 42... Rxe5 {[%clk
0:00:43.6]} 43. f4 {[%clk 0:00:02.4]} 43... Re4 {[%clk 0:00:42.5]} 44. Nf3
{[%clk 0:00:01.4]} 44... Rxf4 {[%clk 0:00:41.2]} 45. Ne5+ {[%clk 0:00:01.6]}
45... Kf5 {[%clk 0:00:39.5]} 46. Nd7 {[%clk 0:00:02.3]} 46... Rc7 {[%clk
0:00:37.5]} 47. g4+ {[%clk 0:00:02.3]} 47... Ke4 {[%clk 0:00:36.2]} 0-1

[Event "Early-Titled-Tuesday-Blitz-October-24-2023"]
[Site "Chess.com"]
[Date "2023.10.24"]
[Round "1"]
[White "m_ezat"]
[Black "LaPiToB"]
[Result "1-0"]
[WhiteElo "2612"]
[BlackElo "2287"]
[TimeControl "180+1"]
[EndTime "8:07:39 PDT"]
[Termination "m_ezat won on time"]

1. d4 {[%clk 0:02:45.3]} 1... Nf6 {[%clk 0:02:59.2]} 2. c4 {[%clk 0:02:40.5]}
2... e6 {[%clk 0:02:59]} 3. Nc3 {[%clk 0:02:34.1]} 3... Bb4 {[%clk 0:02:57.8]}
4. e3 {[%clk 0:02:33.5]} 4... O-O {[%clk 0:02:56.1]} 5. a3 {[%clk 0:02:31.1]}
5... Bxc3+ {[%clk 0:02:54]} 6. bxc3 {[%clk 0:02:32]} 6... c5 {[%clk 0:02:52.4]}
7. Bd3 {[%clk 0:02:31.6]} 7... d6 {[%clk 0:02:49.1]} 8. Ne2 {[%clk 0:02:31.4]}
8... Nc6 {[%clk 0:02:48.3]} 9. O-O {[%clk 0:02:30.6]} 9... b6 {[%clk 0:02:43.4]}
10. e4 {[%clk 0:02:29.5]} 10... e5 {[%clk 0:02:40.2]} 11. Bg5 {[%clk 0:02:28.5]}
11... h6 {[%clk 0:02:34.6]} 12. Bh4 {[%clk 0:02:28.8]} 12... Ba6 {[%clk
0:02:27.6]} 13. f4 {[%clk 0:02:27.1]} 13... exf4 {[%clk 0:02:16.1]} 14. Nxf4
{[%clk 0:02:26.6]} 14... g5 {[%clk 0:02:04.2]} 15. Nh5 {[%clk 0:02:24.8]} 15...
Nxh5 {[%clk 0:01:54.3]} 16. Qxh5 {[%clk 0:02:22.2]} 16... Kg7 {[%clk 0:01:51.3]}
17. e5 {[%clk 0:01:53.6]} 17... dxe5 {[%clk 0:01:36.6]} 18. Rf5 {[%clk
0:01:50.5]} 18... gxh4 {[%clk 0:00:53.1]} 19. Raf1 {[%clk 0:01:42.7]} 19... Qe7
{[%clk 0:00:42.5]} 20. Qg4+ {[%clk 0:00:58.7]} 20... Kh8 {[%clk 0:00:40.6]} 21.
Rh5 {[%clk 0:00:56.6]} 21... Qe6 {[%clk 0:00:32.6]} 22. Bf5 {[%clk 0:00:54.9]}
22... Qd6 {[%clk 0:00:25.6]} 23. Qxh4 {[%clk 0:00:49.3]} 23... Kg7 {[%clk
0:00:19]} 24. Qg3+ {[%clk 0:00:16.2]} 24... Kf6 {[%clk 0:00:13.4]} 25. Rxh6+
{[%clk 0:00:12.3]} 25... Ke7 {[%clk 0:00:13.7]} 26. Rxd6 {[%clk 0:00:12.4]}
26... Kxd6 {[%clk 0:00:14.6]} 27. d5 {[%clk 0:00:12.6]} 27... Ne7 {[%clk
0:00:09.5]} 28. Re1 {[%clk 0:00:12.7]} 28... f6 {[%clk 0:00:08.9]} 29. Be6
{[%clk 0:00:12.1]} 29... Bxc4 {[%clk 0:00:08.7]} 30. Qg4 {[%clk 0:00:10.4]}
30... Bb5 {[%clk 0:00:06.1]} 31. c4 {[%clk 0:00:10]} 31... Ba4 {[%clk 0:00:06]}
32. h4 {[%clk 0:00:06.1]} 32... Rad8 {[%clk 0:00:02.4]} 33. h5 {[%clk
0:00:06.2]} 33... Kc7 {[%clk 0:00:02.8]} 34. Qg7 {[%clk 0:00:05.9]} 34... Rde8
{[%clk 0:00:01.7]} 35. Bf7 {[%clk 0:00:05.7]} 35... Rd8 {[%clk 0:00:01.2]} 36.
Bg6 {[%clk 0:00:05.7]} 36... Rd7 {[%clk 0:00:01.8]} 37. Qxf8 {[%clk 0:00:05.1]}
37... Nxg6 {[%clk 0:00:02.3]} 38. Qxf6 {[%clk 0:00:04.3]} 38... Nf4 {[%clk
0:00:02.1]} 39. Qxe5+ {[%clk 0:00:03.5]} 39... Kb7 {[%clk 0:00:01.5]} 40. Qxf4
{[%clk 0:00:04.4]} 40... Bb3 {[%clk 0:00:01.4]} 41. Re6 {[%clk 0:00:05.1]} 41...
Bxc4 {[%clk 0:00:02.3]} 42. Qxc4 {[%clk 0:00:04.7]} 1-0